[Event "93rd German Championship 2022"]
[Site "Magdeburg"]
[Date "2022.08.15"]
[Round "2.9"]
[White "Feuerstack, Aljoscha"]
[Black "Pahl, Erik"]
[Result "1/2-1/2"]
[ECO "E62"]
[WhiteElo "2473"]
[BlackElo "2203"]
[Annotator "TA"]
[PlyCount "70"]
[EventDate "2022.08.14"]
[EventType "swiss"]
[EventCountry "GER"]
[SourceTitle "playchess.com"]
[Source "ChessBase"]
[SourceQuality "1"]
[TimeControl "40/5400+30:1800+30"]

{[%evp 16,70,34,31,56,51,44,18,12,11,33,0,0,0,0,0,19,0,8,-8,162,162,170,55,56,46,55,52,52,60,51,36,59,0,0,0,0,6,44,14,46,0,48,0,58,0,0,0,-22,-30,0,0,0,0,0,0,0]} 1. d4 {[%emt 0:00:03]} Nf6 {[%emt 0:00:09]} 2. c4 {[%emt 0:00:04]} g6 {[%emt 0:01:45]} 3. g3 {[%emt 0:00:12]} Bg7 {[%emt 0:00:10]} 4. Bg2 {[%emt 0:00:05]} O-O {[%emt 0:00:09]} 5. Nc3 {[%emt 0:00:32]} d6 {[%emt 0:00:20]} 6. Nf3 {[%emt 0:00:09][%cal Bg1f3,Bf3d2,Bd2b3][%mdl 32]} Nc6 {[%emt 0:00:09]} 7. O-O {[%emt 0:00:15]} e5 {[%emt 0:00:11]} 8. dxe5 {[%emt 0:00:20]} dxe5 $1 {[%emt 0:07:56] 8...dxe5 scores better than 8...Nxe5.} 9. Bg5 {[%emt 0:00:27]} Qxd1 {[%emt 0:08:51] E62: King's Indian: Fianchetto: 6...c6 and Panno Variation (6...Nc6) without ...a6.} 10. Raxd1 {[%emt 0:02:31] [#]} Re8 $146 {[%emt 0:06:34]} ({Predecessor:} 10... h6 11. Be3 Be6 12. Nd5 Rac8 13. Nxf6+ Bxf6 14. Bxh6 Rfd8 15. b3 Nb4 16. Bg5 Bxg5 17. Nxg5 Nxa2 18. Nxe6 fxe6 19. Bxb7 {1-0 (31) Plat,V (2510)-Havlik,J (2393) Czech Republic 2016}) 11. Nd2 {[%emt 0:34:42]} Nd4 {[%emt 0:11:01]} 12. Nb3 {[%emt 0:13:03]} Ne6 {[%emt 0:09:40]} 13. Be3 {[%emt 0:02:44]} (13. Bxf6 $5 Bxf6 14. Rd2 $11) 13... Ng4 {[%emt 0:05:57]} 14. Bc1 {[%emt 0:02:46]} f5 {[%emt 0:05:44]} 15. Rfe1 {[%emt 0:10:41]} Nf6 {[%emt 0:07:44]} 16. e4 {[%emt 0:10:00]} f4 {[%emt 0:03:20]} 17. gxf4 {[%emt 0:04:29]} Nxf4 {[%emt 0:03:09]} (17... exf4 $11 {and Black has nothing to worry.} 18. Nd5 Nh5) 18. Bxf4 $18 {[%emt 0:00:22]} exf4 {[%emt 0:00:37] [#]} 19. e5 {[%emt 0:03:48]} (19. Nb5 $1 $18) 19... Ng4 $14 {[%emt 0:00:58]} 20. Nd5 {[%emt 0:00:27][%csl LRc7,LRf4]} Rxe5 {[%emt 0:07:48]} 21. Nxc7 {[%emt 0:01:40]} Rb8 {[%emt 0:00:23]} 22. Rd8+ {[%emt 0:01:53]} Kf7 {[%emt 0:00:07]} 23. Red1 {[%emt 0:03:04] [#] Black must now prevent Bd5+.} Nf6 {[%emt 0:02:41][%cal Oc8g4]} 24. Nb5 {[%emt 0:00:52]} (24. Nd2 $14) 24... Bg4 $11 {[%emt 0:01:24]} 25. Rxb8 {[%emt 0:03:45]} Bxd1 {[%emt 0:00:08] A strong pair of Bishops.} 26. Rxb7+ {[%emt 0:00:04]} Kf8 {[%emt 0:00:53] And now ...f3 would win.} (26... Kg8 $5 {[%cal Rf4f3]}) 27. Rb8+ {[%emt 0:00:36]} (27. Nxa7 $2 Re1+ 28. Bf1 Be2 $19) (27. f3 $5 {[%cal Rb3d4]}) 27... Ke7 {[%emt 0:00:37] Threatens to win with ...Re1+.} 28. Rb7+ {[%emt 0:01:35]} ({Weaker is} 28. Nxa7 Re1+ 29. Bf1 Ne4 30. Rb7+ Kf8 31. Rb8+ Kf7 32. Rb7+ Kf6 $19) (28. f3 $5 {[%cal Rb3d4]}) 28... Kf8 $1 {[%emt 0:00:22]} 29. Rb8+ {[%emt 0:00:24]} ({Avoid the trap} 29. Nxa7 $2 Re1+ 30. Bf1 Be2 $19) (29. f3 $5 {[%cal Rb3d4]}) 29... Ke7 {[%emt 0:00:08] ...Re1+ is the strong threat.} 30. Bc6 {[%emt 0:02:13]} ({And not} 30. Nxa7 Re1+ 31. Bf1 Ne4 32. Rb7+ Kf6 $19) (30. f3 $1 $14) 30... f3 $1 {[%emt 0:02:15][%cal Re5e1]} 31. Rb7+ {[%emt 0:00:04]} Kf8 {[%emt 0:00:41][%cal Re5e1]} 32. Rb8+ $1 {[%emt 0:00:03]} Ke7 {[%emt 0:01:55][%cal Re5e1][%mdl 1024] Black has compensation.} 33. Rb7+ {[%emt 0:00:05] The position is equal.} Kf8 {[%emt 0:00:16][%cal Re5e1]} 34. Rb8+ $1 {[%emt 0:00:19]} Ke7 {[%emt 0:03:10][%cal Re5e1]} 35. Rb7+ {[%emt 0:00:08]} Kf8 {[%emt 0:00:09] Weighted Error Value: White=0.25 (precise) /Black=0.13 (very precise)} 1/2-1/2

[Event "93rd German Championship 2022"]
[Site "Magdeburg"]
[Date "2022.08.15"]
[Round "2.10"]
[White "Bracker, Arne"]
[Black "Wachinger, Nikolas"]
[Result "0-1"]
[ECO "B94"]
[WhiteElo "2277"]
[BlackElo "2437"]
[Annotator "TA"]
[PlyCount "85"]
[EventDate "2022.08.14"]
[EventType "swiss"]
[EventCountry "GER"]
[SourceTitle "playchess.com"]
[Source "ChessBase"]
[SourceQuality "1"]
[TimeControl "40/5400+30:1800+30"]

{[%evp 11,85,8,17,2,8,9,3,0,14,0,6,6,17,0,0,0,0,0,0,6,0,-56,-65,-106,-122,-157,-164,-185,-153,-313,-305,-293,-279,-243,-192,-200,-190,-198,-187,-297,-282,-363,-326,-328,-279,-281,-309,-308,-245,-249,-241,-241,-241,-241,-241,-241,-241,-241,-241,-241,-242,-242,-241,-242,-250,-257,-257,-1542,-1294,-1569,-1363,-1281,-1100,-1000,-976,-879]} 1. e4 {[%emt 0:03:49]} c5 {[%emt 0:00:10]} 2. Nf3 {[%emt 0:00:08]} d6 {[%emt 0:00:08]} 3. d4 {[%emt 0:00:12]} cxd4 {[%emt 0:00:09]} 4. Nxd4 {[%emt 0:00:05]} Nf6 {[%emt 0:00:09]} 5. Nc3 {[%emt 0:00:05]} a6 {[%emt 0:00:06]} 6. Bg5 {[%emt 0:00:08]} Nbd7 {[%emt 0:00:10]} 7. Qe2 {[%emt 0:00:23] 7.Qe2 is the modern continuation. B94: Sicilian Najdorf: 6 Bg5 Nbd7.} b5 {[%emt 0:00:18]} 8. O-O-O {[%emt 0:13:50]} Bb7 {[%emt 0:00:13]} 9. f4 {[%emt 0:03:51] The position is equal. 9.Bxf6 is not played anymore.} Rc8 {[%emt 0:02:16][%cal Oc8c3] [#] aiming for ...Rxc3!} 10. Bxf6 $146 {[%emt 0:09:01]} ({Predecessor:} 10. e5 dxe5 11. fxe5 Rxc3 12. exf6 Rc5 13. h4 Re5 14. fxg7 Bxg7 15. Qf2 Qb6 16. Be2 {0-1 (74) Karjakin,S (2752)-Bocharov,D (2524) Chess.com INT 2020}) 10... Nxf6 {[%emt 0:00:56]} 11. e5 {[%emt 0:01:22]} Rxc3 $1 {[%emt 0:03:13]} 12. exf6 {[%emt 0:08:37]} Rc5 $1 {[%emt 0:00:22]} 13. fxe7 {[%emt 0:15:59]} Bxe7 {[%emt 0:03:28][%cal Bf8e7,Be7f6,Bf6h4][%mdl 32]} 14. Re1 {[%emt 0:02:51]} Kf8 {[%emt 0:03:57]} 15. h4 {[%emt 0:10:04]} Bf6 {[%emt 0:07:45]} 16. Qe3 {[%emt 0:05:40]} (16. Nb3 $11) 16... g6 $15 {[%emt 0:09:23]} 17. Bd3 {[%emt 0:01:24]} Bxh4 {[%emt 0:06:19] A strong pair of Bishops.} 18. Re2 {[%emt 0:01:26] [#]} (18. Rxh4 $2 Qxh4 19. g3 Qd8 $19) 18... Re5 $3 {[%emt 0:06:58][%mdl 512]} 19. fxe5 {[%emt 0:05:43]} (19. Qg1 Rxe2) 19... Bg5 {[%emt 0:01:14] Prevents Qh6+.} 20. e6 $2 {[%emt 0:04:14] Loses the game.} (20. Ne6+ $17 fxe6 21. Rf1+ Kg7 22. Rf4) 20... Bxe3+ $19 {[%emt 0:08:44]} 21. Rxe3 {[%emt 0:00:02]} Qg5 {[%emt 0:00:16]} 22. Rhe1 {[%emt 0:00:46]} Bd5 {[%emt 0:04:12] And now ...Bxe6 would win.} (22... Bxg2 $2 23. Kb1) 23. e7+ {[%emt 0:03:07]} Kg7 {[%emt 0:03:58] Hoping for ...Re8.} 24. Kb1 {[%emt 0:02:29]} Re8 {[%emt 0:00:07]} 25. b3 {[%emt 0:02:27]} (25. a4 {is a better defense.} Qf4 26. Nxb5) 25... Qxg2 {[%emt 0:04:05]} (25... Bxg2 $2 26. Bf5 Bc6 27. Bxg6 hxg6 28. Nxc6 $19) 26. R3e2 {[%emt 0:02:55]} Qg4 {[%emt 0:02:33]} 27. Nxb5 {[%emt 0:02:24]} axb5 {[%emt 0:00:12]} 28. Bxb5 {[%emt 0:00:04]} Qc8 {[%emt 0:00:10]} (28... Bf3 $2 29. Bxe8 (29. Re3 Rh8 $15) 29... Bxe2 30. Bc6 $18) 29. Bxe8 {[%emt 0:00:42]} Qxe8 {[%emt 0:00:04]} 30. a4 {[%emt 0:00:26]} Be6 {[%emt 0:15:36]} 31. Rxe6 {[%emt 0:00:05]} fxe6 {[%emt 0:00:05]} 32. Rxe6 {[%emt 0:00:02][%mdl 4096] Endgame KQ-KR} h5 $1 {[%emt 0:00:19][%cal Bh7h5,Bh5h4,Bh4h3,Bh3h2][%mdl 32]} (32... Kf7 33. Re3 $17) 33. a5 {[%emt 0:00:30] [#]} h4 $1 {[%emt 0:00:19]} 34. a6 {[%emt 0:00:38]} h3 {[%emt 0:03:18] Strongly threatening ...h2.} 35. a7 {[%emt 0:00:19]} h2 {[%emt 0:00:06]} 36. Re1 {[%emt 0:00:17]} Kf7 {[%emt 0:00:57]} 37. Ka2 {[%emt 0:01:19]} g5 {[%emt 0:01:00]} 38. Rf1+ {[%emt 0:00:59] [#]} Kg7 $1 {[%emt 0:03:11]} ({Worse is} 38... Ke6 39. Rf8 Qxe7 40. a8=Q $11) 39. Rh1 $2 {[%emt 0:00:38]} ({Wrong is} 39. Rf8 $2 Qxe7 40. a8=Q Qxf8 $19) (39. Kb2 Qh8 40. Ka3) 39... Qa8 {[%emt 0:01:05] Black is clearly winning.} 40. Kb2 {[%emt 0:00:36]} Kf7 {[%emt 0:00:54]} 41. Rxh2 {[%emt 0:12:17]} Kxe7 {[%emt 0:00:16]} (41... Qxa7 42. e8=Q+ Kxe8 43. Rh8+ Ke7 44. Rh7+ Kf6 45. Rxa7 $18) 42. Rh6 {[%emt 0:00:10]} Kf7 {[%emt 0:01:28] ...Kg7 is the strong threat.} 43. Kc3 {Weighted Error Value: White=0.37/Black=0.02 (flawless)} 0-1

[Event "93rd German Championship 2022"]
[Site "Magdeburg"]
[Date "2022.08.15"]
[Round "2.11"]
[White "Farokhi, Keyvan"]
[Black "Krassowizkij, Jaroslaw"]
[Result "0-1"]
[ECO "C47"]
[WhiteElo "2332"]
[BlackElo "2428"]
[Annotator "TA"]
[PlyCount "64"]
[EventDate "2022.08.14"]
[EventType "swiss"]
[EventCountry "GER"]
[SourceTitle "playchess.com"]
[Source "ChessBase"]
[SourceQuality "1"]
[TimeControl "40/5400+30:1800+30"]

{[%evp 11,63,-29,0,-15,0,0,0,-10,0,0,0,3,-3,-20,-11,-19,-16,-41,-53,-50,-12,-37,-12,-14,0,-78,-71,-79,-75,-162,-150,-326,-333,-333,-327,-365,-292,-422,-431,-1488,-152,-553,-553,-538,-515,-1110,-821,-808,-804,-728,-728,-907,-892,-29999]} 1. e4 {[%emt 0:00:04]} e5 {[%emt 0:00:03]} 2. Nf3 {[%emt 0:00:07]} Nc6 {[%emt 0:00:09]} 3. Nc3 {[%emt 0:00:06]} Nf6 {[%emt 0:00:06]} 4. d4 {[%emt 0:00:04]} Bb4 {[%emt 0:03:00]} 5. d5 {[%emt 0:18:29]} Ne7 {[%emt 0:00:13]} 6. Nxe5 {[%emt 0:01:01]} d6 {[%emt 0:01:08]} (6... Nxe4 $5 7. Qd4 (7. Qf3 f5 $11) 7... Bxc3+ 8. bxc3 Nf6 $11) 7. Bb5+ {[%emt 0:13:57] C47: Scotch Four Knights and Four Knights with 4 g3.} Kf8 {[%emt 0:00:10]} 8. Nf3 {[%emt 0:00:18] Hoping for Qe2.} Nxe4 {[%emt 0:01:41]} 9. O-O {[%emt 0:09:14] The position is equal.} Nxc3 {[%emt 0:19:25]} 10. bxc3 {[%emt 0:00:12]} Bxc3 {[%emt 0:00:03][%cal Bb4c3,Bc3f6,Bf6e5][%mdl 32]} 11. Rb1 {[%emt 0:04:23] [#]} h6 $146 {[%emt 0:11:14]} ({Predecessor:} 11... b6 12. Nd4 Bd7 13. Bc4 Bxd4 14. Qxd4 f6 15. Bd3 Kf7 16. Qh4 Bf5 17. Bxf5 Nxf5 {1-0 (38) Gaprindashvili,N-Polihroniade,E Vrnjacka Banja 1961}) 12. Nd4 {[%emt 0:08:25][%cal Bf3d4,Bd4e2,Be2g3,Bg3e4][%mdl 32]} a6 $36 {[%emt 0:18:02][%mdl 2048] Black is more active.} (12... Nxd5 {looks sharper.} 13. Nc6 bxc6 14. Bxc6 Ba6) 13. Bc4 {[%emt 0:01:12]} b5 {[%emt 0:00:36]} 14. Bb3 {[%emt 0:00:05]} Nf5 {[%emt 0:02:22]} 15. Ne2 {[%emt 0:20:04]} Bf6 {[%emt 0:02:35]} 16. Ng3 {[%emt 0:00:14]} h5 {[%emt 0:18:26]} 17. Ne4 {[%emt 0:04:15]} Be5 {[%emt 0:01:35]} 18. Bg5 {[%emt 0:02:19] Inhibits Qh4.} (18. Qd3 $11) 18... f6 $17 {[%emt 0:02:31]} 19. Bd2 {[%emt 0:00:17]} Qe8 $1 {[%emt 0:00:41] ...Nh4 is the strong threat.} 20. Re1 {[%emt 0:02:19]} (20. Qe2 $17) 20... Qg6 $19 {[%emt 0:01:07] Strongly threatening ...Nh4.} 21. c3 $2 {[%emt 0:03:24]} (21. f3 $17 {is a better defense.}) 21... Nh4 $1 {[%emt 0:03:56][%csl Gh4][%cal Rg6g2]} (21... h4 22. f4 h3 23. g3 $11) 22. Ng3 {[%emt 0:00:02]} Bg4 {[%emt 0:01:07]} 23. Qc1 {[%emt 0:00:08]} Nxg2 {[%emt 0:02:10]} 24. Kxg2 {[%emt 0:01:04]} (24. Bc2 $142 f5 25. Kxg2) 24... h4 $1 {[%emt 0:00:11][%cal Bh5h4,Bh4g3][%mdl 32]} (24... Qd3 $2 25. Re3 Qg6 26. Bc2 $18) (24... Bf5 25. h4 $15) 25. Qc2 {[%emt 0:03:32] [#]} (25. Bc2 hxg3 26. Bh6 (26. Bxg6 Rxh2+ 27. Kg1 Bf3 28. fxg3 Bxg3) 26... Qh5 27. fxg3 Rxh6) (25. Bf4 $142 Bh3+ 26. Kg1) 25... Bh3+ $2 {[%emt 0:05:14]} 26. Kh1 {[%emt 0:00:07] Loses the game.} (26. Kg1 $17 f5 27. Qd3) 26... Qg4 {[%emt 0:00:36]} 27. Qe4 {[%emt 0:01:52] Prevents Qf3+.} hxg3 {[%emt 0:00:06]} 28. f4 {[%emt 0:00:10]} (28. fxg3 $142 Qxe4+ 29. Rxe4 Bxg3 30. Ra1) 28... f5 {[%emt 0:01:41]} ({But not} 28... g2+ $2 29. Kg1 $19) 29. Qe2 {[%emt 0:01:25]} Qxe2 {[%emt 0:01:51]} ({Avoid the trap} 29... g2+ $2 30. Kg1 Qxe2 31. Rxe2 $19) 30. Rxe2 {[%emt 0:00:08]} Bg4 {[%emt 0:00:14]} 31. Rg2 {[%emt 0:00:24]} Bf3 {[%emt 0:00:26][%csl LRg2,LRh2][%cal Oe5d4] ( -> ...Bd4!)} 32. Rbg1 {[%emt 0:00:05]} Rxh2# {Weighted Error Value: White=1.24/Black=0.32} 0-1

[Event "93rd German Championship 2022"]
[Site "Magdeburg"]
[Date "2022.08.15"]
[Round "2.12"]
[White "Parvanyan, Alfred"]
[Black "Gungl, Theo"]
[Result "1-0"]
[ECO "A06"]
[WhiteElo "2126"]
[BlackElo "2359"]
[Annotator "TA"]
[PlyCount "153"]
[EventDate "2022.08.14"]
[EventType "swiss"]
[EventCountry "GER"]
[SourceTitle "playchess.com"]
[Source "ChessBase"]
[SourceQuality "1"]
[TimeControl "40/5400+30:1800+30"]

{[%evp 23,153,20,47,26,39,45,50,38,25,30,10,7,34,37,31,27,28,0,50,71,208,196,245,229,351,247,232,238,271,128,127,125,129,129,130,120,149,143,150,149,158,151,147,147,167,158,175,173,173,175,175,171,190,179,220,158,197,153,156,139,141,154,146,141,139,139,139,140,175,175,175,175,250,250,225,223,265,260,279,252,410,421,401,389,366,355,295,286,411,100,318,318,299,218,414,100,126,126,145,78,584,580,580,575,656,591,5950,5699,29947,29950,29949,29949,29949,29946,8735,5081,4618,4618,4618,4618,2107,1306,29969,29977,29977,29978,29978,29979,29978,29979,29980,29978]} 1. Nf3 {[%emt 0:01:13]} d5 {[%emt 0:00:06]} 2. g3 {[%emt 0:00:21]} c6 {[%emt 0:00:10]} 3. Bg2 {[%emt 0:00:08]} Bg4 {[%emt 0:00:08]} 4. O-O {[%emt 0:00:16]} Nd7 {[%emt 0:00:07]} 5. d4 {[%emt 0:02:00]} Ngf6 {[%emt 0:00:57]} 6. Nbd2 {[%emt 0:00:15]} e6 {[%emt 0:01:09]} 7. Re1 {[%emt 0:00:16]} Be7 {[%emt 0:02:07]} 8. e4 {[%emt 0:00:15]} dxe4 {[%emt 0:00:34]} 9. Nxe4 {[%emt 0:00:10]} Nxe4 {[%emt 0:00:13]} 10. Rxe4 {[%emt 0:00:08]} Nf6 {[%emt 0:01:28]} 11. Re1 {[%emt 0:00:19]} O-O {[%emt 0:00:56]} 12. c3 {[%emt 0:01:29]} Qb6 {[%emt 0:04:07]} 13. Qa4 {[%emt 0:10:44] [#] D02: 1 d4 d5 2 Nf3 sidelines, including 2...Nf6 3 g3 and 2...Nf6 3 Bf4.} a6 $146 {[%emt 0:10:10]} ({Predecessor:} 13... Bxf3 14. Bxf3 Nd5 15. Rd1 c5 16. c4 Nf6 17. Be3 cxd4 18. Bxd4 Bc5 19. Bxc5 Qxc5 20. Qb5 Rac8 21. Bxb7 Qxc4 22. Qxc4 Rxc4 {½-½ (40) Braga,C (2416)-Aranha Filho,A (2292) Sao Caetano do Sul 2009}) 14. Ne5 {[%emt 0:02:45][%cal Od4d5]} Bf5 {[%emt 0:00:28]} 15. h3 {[%emt 0:14:18][%cal Bh2h3,Bh3h4,Bh4g5][%mdl 32] White is slightly better.} h6 {[%emt 0:20:02]} 16. g4 {[%emt 0:03:30]} Bh7 {[%emt 0:00:15]} 17. h4 {[%emt 0:04:33]} Qc7 {[%emt 0:15:11]} 18. g5 {[%emt 0:05:43]} hxg5 {[%emt 0:00:59]} 19. hxg5 {[%emt 0:00:42]} Nd5 {[%emt 0:00:39]} 20. c4 {[%emt 0:14:08]} Nb6 {[%emt 0:15:33]} (20... b5 $11 21. Qb3 bxc4 22. Qxc4 Bd6) 21. Qb3 $14 {[%emt 0:00:59] Black must now prevent Be4.} Bf5 {[%emt 0:02:57]} (21... Nd7 $16) 22. Bh3 {[%emt 0:06:33] And now Kg2 would win.} Nd7 {[%emt 0:09:16]} (22... Qd8 $142) 23. Bxf5 $18 {[%emt 0:04:05]} Nxe5 {[%emt 0:01:14]} (23... exf5 {keeps fighting.} 24. Ng6 fxg6 25. c5+ (25. Rxe7 Rfe8 $16) 25... Rf7 26. Rxe7 Raf8) 24. Bc2 {[%emt 0:07:11]} ({Weaker is} 24. Rxe5 exf5 25. Bd2 (25. Rxf5 Qd7 $11) 25... Qd7 $11) 24... Ng6 {[%emt 0:01:32]} (24... Ng4 $2 25. Qh3 Qh2+ 26. Qxh2 $18) 25. Qh3 $1 {[%emt 0:03:41][%cal Oe1e6] Strongly threatening Rxe6!} Qd7 {[%emt 0:01:34]} 26. Bxg6 {[%emt 0:06:48]} (26. Qh5 $1 $18) 26... fxg6 $16 {[%emt 0:00:02]} 27. Qxe6+ {[%emt 0:00:38]} ({Not} 27. Rxe6 Rae8 28. Qg4 Bc5 $1 $17) 27... Qxe6 {[%emt 0:00:02]} 28. Rxe6 {[%emt 0:00:09]} Kf7 {[%emt 0:00:07]} 29. Re4 {[%emt 0:00:26]} Rad8 {[%emt 0:02:48]} 30. Bd2 {[%emt 0:03:20]} Rd7 {[%emt 0:00:51]} 31. Rae1 {[%emt 0:01:37][%cal Oe4e7] aiming for Rxe7+!} Rfd8 {[%emt 0:02:42]} 32. Be3 {[%emt 0:06:15] White is more active.} Bb4 {[%emt 0:00:56]} 33. Re2 {[%emt 0:00:48]} Ba5 {[%emt 0:01:37]} 34. Kg2 {[%emt 0:00:25]} Kg8 {[%emt 0:02:00]} 35. f4 {[%emt 0:01:02]} Bb6 {[%emt 0:01:10][%cal Rb6d4]} 36. c5 {[%emt 0:00:34]} Bc7 {[%emt 0:00:42]} 37. Kf3 {[%emt 0:00:16]} Kf7 {[%emt 0:00:31]} 38. Bf2 {[%emt 0:00:19]} Rh8 {[%emt 0:01:13]} 39. Bg3 {[%emt 0:00:49]} Rhd8 {[%emt 0:01:00]} 40. Ke3 {[%emt 0:00:31]} Rh8 {[%emt 0:01:41]} 41. Rh2 {[%emt 0:08:03]} Rxh2 {[%emt 0:05:25]} 42. Bxh2 {[%emt 0:00:04][%mdl 4096] Endgame KRB-KRB} Rd8 {[%emt 0:01:21]} 43. Kf3 {[%emt 0:01:49]} Rd7 {[%emt 0:01:15]} 44. Bg1 {[%emt 0:00:49]} Rd8 {[%emt 0:04:49]} 45. Re2 {[%emt 0:02:03]} Rh8 {[%emt 0:02:36]} 46. Bf2 {[%emt 0:00:36]} Rd8 {[%emt 0:00:52]} 47. b4 {[%emt 0:00:52][%cal Bb2b4,Bb4b5,Bb5b6][%mdl 32]} Rh8 {[%emt 0:06:25]} (47... Rd5 $142 48. a4 Rd7) 48. a4 $18 {[%emt 0:00:55]} Rh3+ {[%emt 0:05:41]} 49. Bg3 {[%emt 0:00:14]} Rh1 {[%emt 0:00:53]} 50. Rb2 {[%emt 0:04:57]} Ra1 {[%emt 0:01:03]} 51. b5 $1 {[%emt 0:02:08]} Ke8 $2 {[%emt 0:01:16]} (51... axb5 52. axb5 Ra3+ 53. Kg4 Re3) 52. b6 {[%emt 0:02:51]} Bd8 {[%emt 0:00:10]} 53. d5 {[%emt 0:00:37]} Kd7 {[%emt 0:01:19]} 54. Rd2 {[%emt 0:00:46] Hoping for dxc6+.} cxd5 {[%emt 0:01:33]} 55. Rxd5+ {[%emt 0:00:10]} Kc8 {[%emt 0:00:07]} (55... Ke8 $142 56. Re5+ Kd7) 56. f5 $2 {[%emt 0:03:00]} (56. Rd6 $18 {and White stays clearly on top.}) 56... gxf5 {[%emt 0:01:53]} (56... Ra3+ $16 57. Kg2 Bxg5) 57. Rxf5 {[%emt 0:01:44]} Ra3+ {[%emt 0:01:48]} 58. Kg4 {[%emt 0:01:48]} g6 $2 {[%emt 0:00:51] [#]} (58... Rxa4+ 59. Kh5 Rd4) 59. Rf4 $2 {[%emt 0:00:38]} (59. Rf8 $1 $18 {and the rest is easy.}) 59... Rc3 $16 {[%emt 0:00:45]} 60. Bf2 {[%emt 0:00:06] Threatens to win with Rf8.} Be7 {[%emt 0:00:24] [#] Inhibits Rf8+.} 61. Rf7 {[%emt 0:02:29]} ({Better is} 61. a5 $1) 61... Kd7 $2 {[%emt 0:00:36][%mdl 8192]} (61... Rc4+ $16 {keeps fishing.} 62. Kf3 Bxg5) 62. Rg7 $18 {[%emt 0:00:10]} Rc4+ {[%emt 0:00:23]} 63. Kf3 {[%emt 0:00:11]} Ke8 {[%emt 0:00:35]} 64. Rxg6 {[%emt 0:00:43]} Bxc5 {[%emt 0:00:40]} 65. Bxc5 {[%emt 0:00:33][%cal Og6g7]} Rxc5 {[%emt 0:00:01] KR-KR} 66. Rg7 {[%emt 0:00:10]} Kd8 {[%emt 0:01:02]} 67. g6 {[%emt 0:01:28]} Rg5 {[%emt 0:00:18]} 68. Kf4 {[%emt 0:01:37]} Rg1 {[%emt 0:00:25]} 69. Ke5 {[%emt 0:00:22]} Re1+ {[%emt 0:00:14]} 70. Kf6 {[%emt 0:00:41]} Rf1+ {[%emt 0:00:02]} 71. Ke6 {[%emt 0:00:07] Rg8+ would kill now.} Re1+ {[%emt 0:00:21]} 72. Kf7 {[%emt 0:00:07] White wants to mate with Rh7.} Kd7 {[%emt 0:00:54]} 73. Kf8+ {[%emt 0:00:26] White mates.} Kc6 {[%emt 0:00:06]} 74. a5 {[%emt 0:00:35]} Rg1 {[%emt 0:00:30]} 75. Rc7+ {[%emt 0:00:14]} Kb5 {[%emt 0:00:01]} 76. g7 {[%emt 0:00:20]} Kxa5 {[%emt 0:00:04]} 77. Rxb7 {[%emt 0:00:06] Weighted Error Value: White=0.38/Black=0.31} 1-0